bitfinex/quotes_ETHUSD_20250930
["timestamp","ask_amount","ask_price","bid_price","bid_amount"]
[1759247253464,2.42842225,4117.9,4117.8,0.1216]
[1759247253861,2.42842225,4117.9,4117.8,2.844]
[1759247254061,2.42842225,4117.9,4117.8,3.2129]
[1759247254262,2.42842225,4117.9,4117.8,2.9656]
[1759247255572,3.11422225,4117.9,4117.8,0.1216]
[1759247255778,2.4289417,4117.1,4116.8,0.2473]
[1759247255970,2.42895312,4117.0,4116.9,2.844]
[1759247256168,2.42895312,4117.0,4116.1,2.4]
[1759247256169,2.42889412,4117.1,4117.0,0.1216]
[1759247256374,2.67669412,4117.1,4117.0,0.1216]
[1759247256575,2.67669412,4117.1,4116.7,2.844]
[1759247256576,2.42934979,4116.4,4116.0,0.2493]
[1759247256866,1.19635138,4117.1,4116.6,0.1216]
[1759247257198,1.19635138,4117.1,4116.1,2.843]
[1759247257199,2.42936909,4116.3,4116.1,2.843]
[1759247257400,2.42936617,4116.3,4116.1,2.843]
[1759247257601,2.42936617,4116.3,4116.2,0.1216]
[1759247258106,3.11516617,4116.3,4116.2,0.1216]
[1759247258905,3.11516617,4116.3,4116.0,0.002]
[1759247258906,2.42948422,4116.1,4116.0,0.002]
[1759247259102,2.55108422,4116.1,4116.0,0.002]
[1759247259308,8.47988422,4116.1,4116.0,0.002]
[1759247263621,5.19888422,4116.1,4116.0,0.002]
[1759247264112,5.64308422,4116.1,4116.0,0.002]
[1759247264311,6.18628772,4116.1,4116.0,0.002]
[1759247266536,9.01718772,4116.1,4116.0,0.002]
[1759247268811,8.57298772,4116.1,4116.0,0.002]
[1759247270039,5.49428772,4116.1,4116.0,0.002]
[1759247273041,4.82948422,4116.1,4116.0,0.002]
[1759247273219,4.82948422,4116.1,4116.0,0.233]
[1759247273835,4.82948422,4116.1,4116.0,0.7057]
[1759247274030,0.1216,4116.6,4116.0,0.7057]
[1759247274212,2.42891853,4117.1,4116.1,0.7037]
[1759247274412,0.4442,4117.4,4116.0,0.002]
[1759247274413,2.42924814,4116.5,4116.4,0.1216]
[1759247274735,2.66430818,4117.6,4116.4,0.1216]
[1759247274736,2.42907112,4116.8,4116.4,0.8253]
[1759247274933,2.42918517,4116.7,4116.5,0.231]
[1759247275249,2.66413798,4117.9,4116.7,0.1216]
[1759247275250,2.4,4117.3,4116.7,0.1216]
[1759247275459,4.82865908,4117.5,4117.0,0.1216]
[1759247275639,0.1216,4117.6,4117.0,0.3526]
[1759247275849,2.42883513,4117.2,4117.1,0.7037]
[1759247276014,2.42895312,4117.0,4116.9,0.231]
[1759247276215,2.42895312,4117.0,4116.9,0.7037]
[1759247276433,2.42895312,4117.0,4116.9,0.8253]
[1759247277613,0.1216,4118.0,4116.9,0.8253]
[1759247277814,0.1216,4118.0,4116.9,0.1216]
[1759247277815,0.001,4117.0,4116.9,0.1216]
[1759247278032,0.001,4117.0,4116.4,3.22130716]
[1759247278216,0.001,4117.0,4116.9,0.1216]
[1759247278655,0.001,4117.0,4116.9,0.8253]
[1759247280238,2.42995312,4117.0,4116.9,0.1216]
[1759247281177,2.42936617,4116.3,4116.2,0.231]
[1759247281323,2.42909635,4116.8,4115.7,0.231]
[1759247281324,2.42948422,4116.1,4115.7,0.231]
[1759247281948,0.2357,4116.8,4116.0,0.3546]
[1759247282162,2.42948422,4116.1,4116.0,0.3546]
[1759247282562,2.42948422,4116.1,4116.0,0.1236]
[1759247282922,2.42943969,4116.2,4116.0,0.3546]
[1759247283150,0.41973693,4116.7,4116.0,0.3546]
[1759247283635,2.42948422,4116.1,4116.0,0.3546]
[1759247283833,2.42913012,4116.7,4116.0,0.3546]
[1759247284033,2.42948422,4116.1,4116.0,0.3546]
[1759247284262,2.42948422,4116.1,4116.0,0.1236]
[1759247284464,3.59527319,4116.1,4116.0,0.002]
[1759247286025,3.15107319,4116.1,4116.0,0.002]
[1759247286464,2.91537319,4116.1,4116.0,0.002]
[1759247286664,3.71687319,4116.1,4116.0,0.002]
[1759247287520,3.71291368,4116.1,4116.0,0.002]
[1759247288145,6.11291368,4116.1,4116.0,0.002]
[1759247288662,2.42977937,4115.6,4115.5,1e-08]
[1759247288955,8.03535731,4115.6,4115.5,1e-08]
[1759247289168,8.71525731,4115.6,4115.5,1e-08]
[1759247289470,9.50725731,4115.6,4115.5,1e-08]
[1759247290544,8.71525731,4115.6,4115.5,1e-08]
[1759247290762,5.87425731,4115.6,4115.5,1e-08]
[1759247290967,5.19435731,4115.6,4115.5,1e-08]
[1759247291173,4.95137937,4115.6,4115.5,1e-08]
[1759247291479,4.95137937,4115.6,4115.5,0.24840001]
[1759247291480,4.82977937,4115.6,4115.5,0.24840001]
[1759247292225,4.82977937,4115.6,4115.5,1e-08]
[1759247292755,4.82977937,4115.6,4115.5,0.24840001]
[1759247292956,4.82977937,4115.6,4115.5,1e-08]
[1759247293926,2.42977937,4115.6,4115.5,0.69380001]
[1759247295756,2.4297216,4115.7,4115.5,0.69380001]
[1759247295944,2.42972033,4115.7,4115.6,0.6938]
[1759247296258,2.42977937,4115.6,4115.5,1e-08]
[1759247297943,0.1216,4115.9,4115.5,0.69890001]
[1759247298160,2.42971221,4115.8,4115.6,0.6989]
[1759247298365,2.4295951,4116.0,4115.7,0.6989]
[1759247298662,0.001,4116.1,4115.8,0.6989]
[1759247298897,0.001,4116.1,4116.0,0.1216]
[1759247299544,0.001,4116.1,4116.0,0.8205]
[1759247300050,0.001,4116.1,4116.0,0.1216]
[1759247300051,2.43048422,4116.1,4116.0,0.1216]
[1759247302182,2.43048422,4116.1,4115.5,1e-08]
[1759247302183,2.42977937,4115.6,4115.5,1e-08]
[1759247302726,3.12137937,4115.6,4115.5,1e-08]
[1759247303910,2.67357937,4115.6,4115.5,1e-08]
[1759247304219,5.07357937,4115.6,4115.5,1e-08]
[1759247304383,5.68523972,4115.6,4115.5,1e-08]
[1759247304581,6.13303972,4115.6,4115.5,1e-08]
[1759247304888,8.97303972,4115.6,4115.5,1e-08]
[1759247305223,8.52523972,4115.6,4115.5,1e-08]
[1759247306435,8.97303972,4115.6,4115.5,1e-08]
[1759247306937,8.28043972,4115.6,4115.5,1e-08]
[1759247307140,2.42977937,4115.6,4115.5,1e-08]
[1759247307651,2.42977937,4115.6,4115.5,0.22650001]
[1759247308738,2.42977937,4115.6,4115.5,1e-08]
[1759247313716,2.42977937,4115.6,4115.5,0.69890001]
[1759247314128,2.4295885,4116.0,4115.5,0.82050001]
[1759247314324,0.001,4116.1,4115.6,0.72319779]
[1759247314647,0.001,4116.1,4115.9,2.55118337]
[1759247314849,0.001,4116.1,4116.0,3.74392331]
[1759247315070,0.001,4116.1,4116.0,4.54012788]
[1759247315267,0.001,4116.1,4116.0,4.56442331]
[1759247315440,0.001,4116.1,4116.0,6.96442331]
[1759247315641,0.001,4116.1,4116.0,7.41785992]
[1759247317467,0.001,4116.5,4116.4,3.22130716]
[1759247317694,0.001,4116.5,4116.4,26.62068145]
[1759247317973,0.001,4116.5,4116.4,26.71798838]
[1759247318851,0.001,4118.2,4116.8,0.792]
[1759247319049,0.001,4118.2,4118.1,2.42830431]
[1759247319255,0.001,4118.2,4118.1,6.30113474]
[1759247319578,0.001,4118.2,4118.1,9.61893052]
[1759247320549,0.001,4118.2,4118.1,10.10240153]
[1759247321492,0.001,4118.2,4118.1,0.68822621]
[1759247321690,0.001,4118.2,4118.1,3.05589578]
[1759247321890,0.001,4118.2,4118.1,3.29639578]
[1759247322092,0.001,4118.2,4118.1,3.1991]
[1759247323604,2.42924534,4118.2,4118.1,0.3621]
[1759247323803,2.42924534,4118.2,4118.1,2.9576]
[1759247324168,0.001,4118.2,4118.1,2.9576]
[1759247324591,2.42924534,4118.2,4118.1,2.9576]
[1759247325224,0.001,4118.2,4118.1,2.9576]
[1759247325810,2.42924534,4118.2,4118.1,2.9576]
[1759247327201,2.42924534,4118.2,4118.1,0.1216]
[1759247327202,3.12464534,4118.2,4118.1,0.1216]
[1759247327387,3.61038513,4118.2,4118.1,0.1216]
[1759247327699,3.12464534,4118.2,4118.1,0.1216]
[1759247328004,2.42924534,4118.2,4118.1,0.1216]
[1759247329397,3.12464534,4118.2,4118.1,0.1216]
[1759247329599,2.42875287,4117.4,4116.8,0.2405]
[1759247329797,0.2287,4117.9,4117.8,0.1216]
[1759247330027,2.42861543,4117.6,4117.5,2.835]
[1759247330206,0.001,4118.2,4117.6,2.4]
[1759247330511,0.001,4118.2,4118.1,23.05848553]
[1759247330734,0.001,4118.2,4118.1,25.89748553]
[1759247330908,0.001,4118.7,4118.5,3.22006847]
[1759247331229,0.001,4118.7,4118.5,5.64434915]
[1759247331393,0.001,4118.7,4118.5,6.29466847]
[1759247331596,0.001,4118.7,4118.5,6.39195337]
[1759247333326,0.001,4118.7,4118.5,9.22995337]
[1759247333530,0.001,4118.7,4118.5,10.39576332]
[1759247336999,0.001,4119.1,4119.0,2.42777373]
[1759247337200,0.001,4119.1,4119.0,23.51723268]
[1759247337429,0.001,4119.1,4119.0,26.56755495]
[1759247338231,0.001,4119.1,4119.0,23.39571832]
[1759247338421,0.001,4119.1,4119.0,29.06212375]
[1759247339234,0.001,4119.1,4119.0,8.35484253]
[1759247339412,0.001,4119.1,4119.0,2.93126337]
[1759247339734,0.2297,4119.1,4119.0,2.834]
[1759247339910,0.001,4119.1,4119.0,2.834]
[1759247340253,0.001,4119.1,4119.0,2.9556]
[1759247340438,0.6964,4119.1,4119.0,2.9556]
[1759247341438,0.6964,4119.1,4119.0,0.1216]
[1759247341741,0.6964,4119.1,4119.0,2.9556]
[1759247341946,0.001,4119.1,4119.0,2.9556]
[1759247342938,0.001,4119.1,4119.0,5.38337373]
[1759247343242,0.001,4119.1,4119.0,7.41478893]
[1759247343453,0.001,4119.1,4119.0,9.81478893]
[1759247344234,0.001,4119.1,4119.0,6.7124152]
[1759247344453,0.001,4119.1,4119.0,9.14018893]
[1759247344651,0.001,4119.1,4119.0,5.3556]
[1759247344852,0.001,4119.1,4119.0,2.5216]
[1759247345040,0.001,4119.1,4119.0,5.3556]
[1759247345220,0.001,4119.1,4119.0,0.1216]
[1759247345419,0.6964,4119.1,4119.0,2.9556]
[1759247345867,0.2297,4119.1,4119.0,2.9556]
[1759247346022,3.12411479,4119.1,4119.0,2.9556]
[1759247347258,0.6964,4119.1,4119.0,2.9556]
[1759247347552,0.001,4119.1,4119.0,2.9556]
[1759247347788,2.42871479,4119.1,4119.0,2.9556]
[1759247347960,0.001,4119.1,4119.0,2.9556]
[1759247348454,0.001,4119.1,4119.0,2.97987773]
[1759247348753,2.42871479,4119.1,4119.0,2.9556]
[1759247349155,0.001,4119.1,4119.0,2.9556]
[1759247349354,2.42871479,4119.1,4119.0,2.9556]
[1759247349556,2.65741479,4119.1,4119.0,2.9556]
[1759247349755,0.2297,4119.1,4119.0,2.9556]
[1759247349966,0.001,4119.1,4119.0,2.9556]
[1759247350527,2.42871479,4119.1,4119.0,2.9556]
[1759247350858,3.09571479,4119.1,4119.0,0.1216]
[1759247351158,0.001,4119.1,4119.0,2.9556]
[1759247351570,2.42871479,4119.1,4119.0,2.9556]
[1759247351972,0.001,4119.1,4119.0,2.9556]
[1759247353586,0.001,4119.1,4119.0,0.1216]
[1759247353797,0.001,4119.1,4119.0,3.6205]
[1759247354197,0.001,4119.1,4119.0,3.1847]
[1759247354494,0.001,4119.1,4119.0,2.9556]
[1759247355649,0.001,4119.1,4119.0,6.61196503]
[1759247356451,0.001,4119.1,4119.0,7.40396503]
[1759247357069,0.001,4119.2,4119.0,7.40396503]
[1759247357070,0.001,4119.2,4119.1,3.21971479]
[1759247357271,0.001,4119.2,4119.1,23.78257315]
[1759247357473,0.001,4119.2,4119.1,23.75829601]
[1759247357657,0.001,4119.2,4119.1,8.25022022]
[1759247357863,0.001,4119.2,4119.1,6.05371479]
[1759247358063,0.001,4119.2,4119.1,6.75411479]
[1759247360400,0.001,4119.2,4119.1,9.15411479]
[1759247361500,0.001,4119.2,4119.1,3.626]
[1759247361911,0.001,4119.2,4119.1,2.834]
[1759247362498,0.001,4119.2,4119.1,3.48616913]
[1759247362904,0.001,4119.2,4119.1,4.76964627]
[1759247363771,0.001,4119.2,4119.1,7.19736106]
[1759247363970,0.001,4119.2,4119.1,7.17308392]
[1759247364767,0.001,4119.2,4119.1,1.91136913]
[1759247365013,0.001,4119.2,4119.1,7.17208392]
[1759247366392,0.001,4119.2,4119.1,4.33908392]
[1759247366571,0.001,4119.2,4119.1,7.17208392]
[1759247366981,0.001,4119.2,4119.1,2.03296913]
[1759247367184,0.001,4119.2,4119.1,4.16556913]
[1759247367474,0.001,4119.2,4119.1,6.59328392]
[1759247367784,0.001,4119.2,4119.1,7.29368392]
[1759247369606,0.001,4119.2,4119.1,27.13186514]
[1759247370092,0.001,4119.2,4119.1,24.29886514]
[1759247370305,0.001,4119.2,4119.1,27.13186514]
[1759247371599,0.001,4119.2,4119.1,27.13386514]
[1759247373171,0.001,4119.5,4119.4,3.21953799]
[1759247373403,0.001,4119.5,4119.4,10.84984342]
[1759247373602,0.001,4119.5,4119.4,11.67184342]
[1759247375400,0.001,4119.5,4119.4,10.97144342]
[1759247375800,0.001,4119.5,4119.4,11.20464342]
[1759247376198,0.001,4119.5,4119.4,11.67184342]
[1759247379004,0.001,4119.5,4119.4,8.37164342]
[1759247379202,0.001,4119.5,4119.4,8.57313799]
[1759247379602,0.001,4119.5,4119.4,8.80633799]
[1759247380004,0.001,4119.5,4119.4,8.57313799]
[1759247380404,0.001,4119.5,4119.4,5.74113799]
[1759247380610,0.001,4119.5,4119.4,8.57313799]
[1759247380805,0.001,4119.5,4119.4,7.31109204]
[1759247381013,0.001,4119.5,4119.4,9.73863003]
[1759247383631,0.001,4119.5,4119.4,9.98703003]
[1759247383831,0.001,4119.5,4119.4,10.45193003]
[1759247384033,0.001,4119.5,4119.4,9.98703003]
[1759247384536,0.001,4119.5,4119.4,9.73863003]
[1759247384738,0.001,4119.5,4119.4,6.90663003]
[1759247385032,0.001,4119.5,4119.4,9.73863003]
[1759247385533,0.001,4119.5,4119.4,6.90663003]
[1759247385734,0.001,4119.5,4119.4,9.73863003]
[1759247386313,0.001,4119.5,4119.4,9.98703003]
[1759247386512,0.001,4119.5,4119.4,10.45193003]
[1759247387511,0.001,4119.5,4119.4,9.73863003]
[1759247388037,0.001,4119.5,4119.4,6.90663003]
[1759247388213,0.001,4119.5,4119.4,9.73863003]
[1759247389254,0.001,4119.5,4119.4,10.45193003]
[1759247390029,0.001,4119.5,4119.4,7.31109204]
[1759247390235,0.001,4119.5,4119.4,6.90663003]
[1759247390435,0.001,4119.5,4119.4,9.73863003]
[1759247390934,0.001,4119.5,4119.4,10.33033003]
[1759247391551,0.001,4119.6,4119.5,5.61947906]
[1759247391729,0.001,4119.6,4119.5,7.85132496]
[1759247393456,0.001,4120.1,4120.0,19.89058567]
[1759247393636,0.001,4120.1,4120.0,22.72158567]
[1759247393949,0.001,4120.1,4120.0,23.43488567]
[1759247398194,2.42583529,4122.3,4120.0,23.43488567]
[1759247398195,2.4,4123.1,4121.7,2.42612816]
[1759247398489,0.49059857,4124.0,4121.8,2.85526124]
[1759247398490,2.42581918,4122.4,4121.8,2.85526124]
[1759247398989,0.24,4123.0,4121.8,2.85526124]
[1759247398990,0.6614,4122.3,4121.8,2.85526124]
[1759247399192,0.6614,4122.2,4121.8,2.831]
[1759247399396,0.6614,4122.1,4121.8,2.831]
[1759247399694,0.2289,4124.1,4122.0,6.47901413]
[1759247399855,0.6614,4124.0,4122.2,2.4]
[1759247400054,0.6614,4123.9,4122.4,0.792]
[1759247400258,3.08634853,4123.8,4122.5,2.831]
[1759247400490,0.6614,4123.7,4122.7,2.42559113]
[1759247400691,0.6614,4123.6,4122.8,2.85525536]
[1759247400855,2.91599264,4124.8,4122.0,1.06095551]
[1759247400856,3.08652428,4123.5,4123.4,0.1216]
[1759247401061,3.63768135,4123.5,4123.4,2.9526]
[1759247405178,3.63768135,4123.5,4123.4,0.1216]
[1759247406789,3.63768135,4123.5,4123.4,1e-08]
[1759247407996,2.97628135,4123.5,4123.4,0.12160001]
[1759247408199,2.42512428,4123.5,4123.4,0.12160001]
[1759247409088,2.65402428,4123.5,4123.4,0.12160001]
[1759247409422,2.42512428,4123.5,4123.4,0.12160001]
[1759247409701,2.42483026,4124.0,4123.4,0.12160001]
[1759247409903,0.001,4123.5,4123.4,1.25690001]
[1759247410200,0.001,4123.5,4123.4,3.62200001]
[1759247410365,2.42612428,4123.5,4123.4,3.74360001]
[1759247411288,2.42612428,4123.5,4123.4,2.95160001]
[1759247412104,0.001,4123.5,4123.4,2.95160001]
[1759247412803,2.42612428,4123.5,4123.4,2.95160001]
[1759247413182,0.001,4123.5,4123.4,2.95160001]
[1759247413394,0.001,4123.5,4123.4,4.41650001]
[1759247413568,0.001,4123.5,4123.4,3.62450001]
[1759247414100,2.42612428,4123.5,4123.4,3.62450001]
[1759247414300,2.42612428,4123.5,4123.4,3.18570001]
[1759247414467,0.001,4123.5,4123.4,3.18570001]
[1759247416087,0.001,4123.5,4123.4,3.62450001]
[1759247416281,0.001,4123.5,4123.4,4.77895001]
[1759247416973,0.001,4123.5,4123.4,4.20321368]
[1759247417172,0.001,4123.5,4123.4,3.74360001]
[1759247417384,0.001,4123.5,4123.4,4.46465184]
[1759247418803,0.001,4123.5,4123.4,3.98910001]
[1759247419005,0.001,4123.5,4123.4,4.44040001]
[1759247420776,0.001,4123.5,4123.4,3.74360001]
[1759247421785,0.001,4123.5,4123.4,3.98910001]
[1759247422006,0.001,4123.5,4123.4,4.44040001]
[1759247422209,0.001,4123.5,4123.4,3.98910001]
[1759247422412,0.001,4123.5,4123.4,0.12160001]
[1759247422413,2.42612428,4123.5,4123.4,0.12160001]
[1759247422711,2.67202428,4123.5,4123.4,2.95060001]
[1759247422931,2.67202428,4123.5,4123.4,0.12160001]
[1759247423208,3.11152428,4123.5,4123.4,2.94960001]
[1759247423604,3.11152428,4123.5,4123.4,0.12160001]
[1759247423785,3.66518037,4123.5,4123.4,0.12160001]
[1759247423985,3.66518037,4123.5,4123.4,1e-08]
[1759247424395,6.06518037,4123.5,4123.4,1e-08]
[1759247426111,8.89318037,4123.5,4123.4,1e-08]
[1759247428210,6.06518037,4123.5,4123.4,1e-08]
[1759247428396,9.01478037,4123.5,4123.4,1e-08]
[1759247428596,6.18678037,4123.5,4123.4,1e-08]
[1759247429098,6.13678037,4123.5,4123.4,1e-08]
[1759247435631,5.69728037,4123.5,4123.4,1e-08]
[1759247435833,5.45138037,4123.5,4123.4,1e-08]
[1759247436514,5.69728037,4123.5,4123.4,1e-08]
[1759247437205,6.13678037,4123.5,4123.4,1e-08]
[1759247437608,4.89772428,4123.5,4123.4,1e-08]
[1759247437804,4.77612428,4123.5,4123.4,1e-08]
[1759247439111,4.77612428,4123.5,4123.4,0.69680001]
[1759247439310,0.001,4124.0,4123.4,0.69680001]
[1759247439512,0.001,4124.0,4123.8,0.1216]
[1759247439905,0.001,4124.0,4123.9,0.6968]
[1759247440106,0.001,4124.0,4123.9,0.8184]
[1759247440725,0.001,4124.0,4123.9,1.14274526]
[1759247441004,0.001,4124.0,4123.9,0.8184]
[1759247441940,0.001,4124.0,4123.9,0.1216]
[1759247442340,0.001,4124.0,4123.9,0.8274]
[1759247443249,0.001,4124.0,4123.9,3.25228906]
[1759247443546,0.001,4124.0,4123.9,0.8274]
[1759247444118,0.001,4124.0,4123.9,1.15263322]
[1759247444452,0.001,4124.0,4123.9,0.1216]
[1759247446146,0.001,4124.0,4123.9,0.3543]
[1759247446350,0.001,4124.0,4123.9,0.1216]
[1759247446537,2.42583026,4124.0,4123.9,0.1216]
[1759247446850,0.001,4124.0,4123.9,0.1216]
[1759247447728,2.42583026,4124.0,4123.9,0.1216]
[1759247448736,0.001,4124.0,4123.9,0.1216]
[1759247448942,0.001,4124.0,4123.9,0.3543]
[1759247449350,0.001,4124.0,4123.9,0.1216]
[1759247449863,0.001,4124.0,4123.9,0.3543]
[1759247450032,0.001,4124.0,4123.9,0.1216]
[1759247450358,2.42583026,4124.0,4123.9,0.1216]
[1759247450561,3.6416052,4124.0,4123.9,0.1216]
[1759247450862,2.66703026,4124.0,4123.9,0.1216]
[1759247451273,3.13243026,4124.0,4123.9,0.1216]
[1759247451850,2.42490922,4123.9,4123.4,1e-08]
[1759247452161,2.42497757,4123.8,4123.6,0.1216]
[1759247452350,0.001,4124.0,4123.6,0.1216]
[1759247452554,2.42494647,4123.9,4123.6,0.1216]
[1759247452752,2.4258825,4124.0,4123.6,0.1216]
[1759247452995,2.4258825,4124.0,4123.6,0.5947]
[1759247453263,0.001,4124.0,4123.7,0.2327]
[1759247453462,0.001,4124.0,4123.9,0.1216]
[1759247453841,0.001,4124.0,4123.9,4.00388977]
[1759247454049,0.001,4124.0,4123.9,3.97964088]
[1759247454376,0.001,4124.0,4123.9,6.40452994]
[1759247454534,0.001,4124.0,4123.9,3.97964088]
[1759247455141,0.001,4124.0,4123.9,0.67954088]
[1759247455363,0.001,4124.0,4123.9,3.1813]
[1759247455662,0.001,4124.0,4123.9,2.9486]
[1759247455845,0.001,4124.0,4123.9,0.1216]
[1759247456039,0.001,4124.0,4123.9,2.9486]
[1759247457665,2.42583026,4124.0,4123.9,2.9486]
[1759247458897,2.42583026,4124.0,4123.9,0.1216]
[1759247459194,2.42512428,4123.5,4123.4,1e-08]
[1759247459562,2.42512428,4123.5,4123.4,0.12160001]
[1759247459986,0.2412,4123.8,4123.4,0.12160001]
[1759247459987,2.4,4123.8,4123.4,0.12160001]
[1759247460189,2.42494786,4123.8,4123.4,0.12160001]
[1759247460401,0.4664,4124.0,4123.4,0.12160001]
[1759247460608,2.42510451,4123.6,4123.4,0.12160001]
[1759247460808,2.42512428,4123.5,4123.4,0.12160001]
[1759247461603,4.82512428,4123.5,4123.4,0.12160001]
[1759247462698,2.89126445,4124.0,4123.4,0.12160001]
[1759247462699,2.42499478,4123.8,4123.4,1e-08]
[1759247463005,2.42504524,4123.7,4123.4,1.11030001]
[1759247463202,2.42504524,4123.7,4123.5,0.7058]
[1759247463409,0.001,4124.0,4123.6,0.7058]
[1759247463563,2.42583831,4124.0,4123.7,3.55705006]
[1759247463764,0.001,4124.0,4123.9,0.1216]
[1759247464292,0.001,4124.0,4123.9,0.8274]
[1759247464982,2.42583026,4124.0,4123.9,0.8274]
[1759247465184,0.001,4124.0,4123.9,0.8274]
[1759247465524,0.001,4124.0,4123.9,0.85164889]
[1759247465682,0.001,4124.0,4123.9,1.21951378]
[1759247465884,0.001,4124.0,4123.9,1.19526489]
[1759247466308,2.42583026,4124.0,4123.9,0.1216]
[1759247466492,0.001,4124.0,4123.9,2.9476]
[1759247467216,2.42583026,4124.0,4123.9,2.9476]
[1759247467422,0.001,4124.0,4123.9,2.9476]
[1759247467787,2.42583026,4124.0,4123.9,2.9476]
[1759247468213,0.001,4124.0,4123.9,2.9476]
[1759247468605,0.001,4124.0,4123.9,3.1803]
[1759247469221,0.001,4124.0,4123.9,4.01874]
[1759247469730,0.001,4124.0,4123.9,4.04298889]
[1759247470022,0.001,4124.0,4123.9,4.01874]
[1759247471388,0.001,4124.0,4123.9,3.6138]
[1759247472039,0.001,4124.0,4123.9,3.63804889]
[1759247472198,0.001,4124.0,4123.9,3.6138]
[1759247473605,0.001,4124.0,4123.9,2.9476]
[1759247473813,2.42583026,4124.0,4123.9,2.9476]
[1759247474501,2.42583026,4124.0,4123.9,0.1216]
[1759247474706,2.42583026,4124.0,4123.9,2.9476]
[1759247478742,2.42583026,4124.0,4123.9,3.1741]
[1759247479036,2.42583026,4124.0,4123.9,2.9476]
[1759247480747,2.42583026,4124.0,4123.9,0.1216]
[1759247480954,2.67003026,4124.0,4123.9,2.9466]
[1759247481122,3.10373026,4124.0,4123.9,2.9466]
[1759247481332,8.70009875,4124.0,4123.9,0.1216]
[1759247481516,3.10373026,4124.0,4123.9,0.1216]
[1759247482249,2.67003026,4124.0,4123.9,0.1216]
[1759247482418,3.10373026,4124.0,4123.9,0.1216]
[1759247482753,2.42506547,4123.6,4123.5,0.002]
[1759247483124,3.10296547,4123.6,4123.5,0.1236]
[1759247483852,2.42506547,4123.6,4123.5,0.1236]
[1759247484821,2.42506547,4123.6,4123.5,0.3501]
[1759247485244,2.42506547,4123.6,4123.5,0.1236]
[1759247485851,5.50296547,4123.6,4123.5,0.1236]
[1759247486050,6.29576119,4123.6,4123.5,0.1236]
[1759247487529,5.86206119,4123.6,4123.5,0.1236]
[1759247487731,6.29576119,4123.6,4123.5,0.1236]
[1759247488052,6.29576119,4123.6,4123.5,0.002]
[1759247489219,5.61786119,4123.6,4123.5,0.002]
[1759247489419,4.82506547,4123.6,4123.5,0.002]
[1759247489625,4.82506547,4123.6,4123.5,0.3501]
[1759247489834,0.001,4124.0,4123.5,3.6046]
[1759247490120,0.001,4124.0,4123.9,0.1216]
[1759247490636,0.001,4124.0,4123.9,0.7776]
[1759247490961,2.42583026,4124.0,4123.9,0.7776]
[1759247491144,2.42583026,4124.0,4123.9,0.1216]
[1759247491348,2.42583026,4124.0,4123.9,2.9456]
[1759247492230,2.42583026,4124.0,4123.9,3.1721]
[1759247492555,2.42583026,4124.0,4123.9,3.6016]
[1759247492927,0.001,4124.0,4123.9,3.6016]
[1759247493427,2.42583026,4124.0,4123.9,3.6016]
[1759247494765,2.42583026,4124.0,4123.9,2.9456]
[1759247494974,2.42583026,4124.0,4123.9,3.1721]
[1759247496053,0.001,4124.0,4123.9,3.1721]
[1759247496252,2.42583026,4124.0,4123.9,3.6016]
[1759247496773,2.42583026,4124.0,4123.9,3.1721]
[1759247498355,2.42583026,4124.0,4123.9,2.9456]
[1759247499585,0.001,4124.0,4123.9,2.9456]
[1759247499893,0.001,4124.0,4123.9,3.77456]
[1759247501343,0.001,4124.0,4123.9,0.29456]
[1759247501550,0.001,4124.0,4123.9,3.0482]
[1759247501955,2.42490061,4123.9,4123.6,0.2252]
[1759247502154,0.001,4124.0,4123.6,0.2252]
[1759247502155,0.001,4124.0,4123.7,3.0482]
[1759247502353,0.001,4124.0,4123.9,0.792]
[1759247502546,0.001,4124.0,4123.9,3.21688906]
[1759247502765,0.001,4124.0,4123.9,4.82721805]
[1759247503279,0.001,4124.0,4123.9,2.40232899]
[1759247503647,0.001,4124.0,4123.9,4.82721805]
[1759247504256,0.001,4124.0,4123.9,2.40232899]
[1759247505191,0.001,4124.0,4123.9,1.61032899]
[1759247505363,0.001,4124.0,4123.9,0.6944]
[1759247506351,0.001,4124.0,4123.9,3.11928906]
[1759247507276,0.001,4124.0,4123.9,3.14353795]
[1759247507677,0.001,4124.0,4123.9,5.96653795]
[1759247507884,0.001,4124.0,4123.9,5.94228906]
[1759247508088,0.001,4124.0,4123.9,6.90758788]
[1759247508653,0.001,4124.0,4123.9,1.19049882]
[1759247508988,0.001,4124.0,4123.9,3.5174]
[1759247509201,0.001,4124.0,4123.9,2.823]
[1759247510008,0.001,4124.0,4123.9,2.9446]
[1759247513500,0.001,4124.0,4123.9,6.85588906]
[1759247518478,0.001,4124.0,4123.9,13.32793204]
[1759247518698,0.001,4124.0,4123.9,14.95154851]
[1759247518906,0.001,4124.0,4123.9,8.47950553]
[1759247519317,0.001,4124.0,4123.9,14.95154851]
[1759247520195,0.001,4124.0,4123.9,17.35154851]
[1759247523189,0.001,4124.0,4123.9,10.87950553]
[1759247523389,0.001,4124.0,4123.9,17.35154851]
[1759247525100,0.001,4124.0,4123.9,18.08004953]
[1759247526501,0.001,4124.0,4123.9,17.95844953]
[1759247527523,0.001,4124.5,4123.9,17.95844953]
[1759247527524,0.001,4124.5,4124.4,2.42459509]
[1759247527822,1.0,4129.7,4125.9,2.42366913]
[1759247527823,0.2448,4126.5,4125.9,2.42366913]
[1759247527992,2.88961005,4126.6,4126.0,2.821]
[1759247527993,0.7111,4126.4,4126.0,2.821]
[1759247528197,0.7111,4126.4,4126.1,2.821]
[1759247528524,2.4,4126.7,4125.9,2.42366083]
[1759247528525,0.7111,4126.3,4126.2,2.821]
[1759247529119,0.2448,4126.5,4126.3,0.792]